fUSD/lending_fUSD_20241207
["ID","MTS","AMOUNT","RATE_DAILY","PERIOD"]
[344534433,1733537456495,-389.98075926,0.00010682,2]
[344534434,1733537456505,-500.0,0.00010682,2]
[344534435,1733537456515,-500.0,0.00010682,2]
[344534436,1733537456524,-500.0,0.00010682,2]
[344534437,1733537456534,-500.0,0.00010682,2]
[344534438,1733537456543,-500.39729281,0.00010682,2]
[344534439,1733537456553,-500.0,0.00010682,2]
[344534440,1733537456563,-500.0,0.00010682,2]
[344534441,1733537456573,-500.0,0.00010682,2]
[344534442,1733537456588,-500.0,0.00010682,2]
[344534443,1733537456598,-500.0,0.00010682,2]
[344534444,1733537456608,-500.0,0.00010682,2]
[344534445,1733537456618,-500.0,0.00010682,2]
[344534446,1733537456628,-500.0,0.00010682,2]
[344534447,1733537456638,-500.0,0.00010682,2]
[344534448,1733537456648,-500.0,0.00010682,2]
[344534449,1733537456658,-263.15992112,0.00010682,2]
[344534450,1733537456668,-500.0,0.00010682,2]
[344534451,1733537456678,-500.0,0.00010682,2]
[344534452,1733537456688,-500.0,0.00010682,2]
[344534453,1733537456698,-500.0,0.00010682,2]
[344534454,1733537456708,-500.0,0.00010682,2]
[344534455,1733537456716,-500.0,0.00010682,2]
[344534456,1733537456726,-500.0,0.00010682,2]
[344534457,1733537456736,-224.0,0.00010684,2]
[344534458,1733537456746,-224.0,0.00010684,2]
[344534459,1733537456756,-224.0,0.00010684,2]
[344534460,1733537456765,-224.0,0.00010684,2]
[344534461,1733537456775,-224.0,0.00010684,2]
[344534462,1733537456785,-224.0,0.00010684,2]
[344534463,1733537456795,-224.0,0.00010684,2]
[344534464,1733537456804,-150.0,0.00010684,2]
[344534465,1733537456814,-7343.69420003,0.00010684,2]
[344534466,1733537456824,-500.0,0.000107,3]
[344534467,1733537456836,-1520.0,0.00010763,2]
[344534468,1733537456846,-602.35,0.00010784,2]
[344534469,1733537456855,-1100.0,0.000108,3]
[344534470,1733537456865,-1056.0,0.00010861,2]
[344534471,1733537456875,-1700.0,0.000109,3]
[344534472,1733537456885,-166.75,0.00010946,2]
[344534473,1733537456894,-1000.0,0.00010949,2]
[344534474,1733537456904,-8500.0,0.0001095,2]
[344534475,1733537456913,-1050.3,0.00010953,2]
[344534476,1733537456922,-500.0,0.00010953,2]
[344534477,1733537456932,-1597.53,0.00010953,2]
[344534478,1733537456941,-1400.57,0.00010953,2]
[344534479,1733537456951,-365.302161,0.00010953,2]
[344534480,1733537456960,-548.55,0.00010953,2]
[344534481,1733537456970,-1766.81,0.00010953,2]
[344534482,1733537456979,-6143.12,0.00010953,2]
[344534483,1733537456989,-1488.72,0.00010953,2]
[344534484,1733537456999,-832.22,0.00010953,2]
[344534485,1733537457009,-525.94,0.00010953,2]
[344534486,1733537457019,-881.78,0.00010953,2]
[344534487,1733537457029,-1317.97,0.00010953,2]
[344534488,1733537457040,-500.0,0.00010953,2]
[344534489,1733537457050,-1288.04,0.00010953,2]
[344534490,1733537457060,-500.0,0.00010953,2]
[344534491,1733537457071,-545.05,0.00010953,2]
[344534492,1733537457085,-1581.01,0.00010953,2]
[344534493,1733537457096,-1641.76,0.00010953,2]
[344534494,1733537457106,-721.09,0.00010953,2]
[344534495,1733537457116,-835.39,0.00010953,2]
[344534496,1733537457127,-2710.58,0.00010953,2]
[344534497,1733537457138,-500.0,0.00010953,2]
[344534498,1733537457149,-1386.68,0.00010953,2]
[344534499,1733537457158,-8757.87,0.00010953,2]
[344534500,1733537457168,-500.0,0.00010953,2]
[344534501,1733537457178,-3403.53,0.00010953,2]
[344534502,1733537457188,-2678.48,0.00010953,2]
[344534503,1733537457198,-241.74,0.00010953,2]
[344534504,1733537457207,-936.22,0.00010953,2]
[344534505,1733537457218,-876.67,0.00010953,2]
[344534506,1733537457228,-500.0,0.00010953,2]
[344534507,1733537457239,-4610.02,0.00010953,2]
[344534508,1733537457249,-500.0,0.00010953,2]
[344534509,1733537457260,-1590.58,0.00010953,2]
[344534510,1733537457270,-571.55,0.00010953,2]
[344534511,1733537457281,-1388.66,0.00010953,2]
[344534512,1733537457291,-500.0,0.00010953,2]
[344534513,1733537457303,-9896.25,0.00010953,2]
[344534514,1733537457314,-500.0,0.00010953,2]
[344534515,1733537457324,-811.95,0.00010953,2]
[344534516,1733537457337,-500.0,0.00010953,2]
[344534517,1733537457351,-1248.83,0.00010953,2]
[344534518,1733537457361,-500.0,0.00010953,2]
[344534519,1733537457371,-945.51,0.00010953,2]
[344534520,1733537457380,-500.0,0.00010953,2]
[344534521,1733537457391,-8439.08,0.00010953,2]
[344534522,1733537457401,-500.0,0.00010953,2]
[344534523,1733537457411,-500.0,0.00010953,2]
[344534524,1733537457421,-500.0,0.00010953,2]
[344534525,1733537457431,-500.0,0.00010953,2]
[344534526,1733537457441,-2764.02,0.00010953,2]
[344534527,1733537457450,-1408.69,0.00010953,2]
[344534528,1733537457460,-1121.13,0.00010953,2]
[344534529,1733537457470,-1072.4,0.00010953,2]
[344534530,1733537457480,-500.0,0.00010954,2]
[344534531,1733537457490,-500.0,0.00010954,2]
[344534532,1733537457501,-1140.1,0.00010954,2]
[344534533,1733537457510,-1462.62,0.00010954,2]
[344534534,1733537457520,-2115.81,0.00010954,2]
[344534535,1733537457531,-1415.45,0.00010954,2]
[344534536,1733537457768,-500.0,0.00010954,2]
[344534537,1733537457778,-500.0,0.00010954,2]
[344534538,1733537457788,-500.0,0.00010954,2]
[344534539,1733537457797,-500.0,0.00010954,2]
[344534540,1733537457808,-609.04,0.00010954,2]
[344534541,1733537457818,-819.45,0.00010954,2]
[344534542,1733537457833,-1046.78,0.00010954,2]
[344534543,1733537457843,-950.43,0.00010954,2]
[344534544,1733537457852,-500.0,0.00010954,2]
[344534545,1733537457862,-500.0,0.00010954,2]
[344534546,1733537457871,-804.93,0.00010954,2]
[344534547,1733537457881,-500.0,0.00010954,2]
[344534548,1733537457891,-500.0,0.00010954,2]
[344534549,1733537457900,-1117.46,0.00010954,2]
[344534550,1733537457910,-500.0,0.00010954,2]
[344534551,1733537457920,-721.67,0.00010954,2]
[344534552,1733537457931,-563.82,0.00010954,2]
[344534553,1733537457941,-500.0,0.00010954,2]
[344534554,1733537457952,-890.81,0.00010954,2]
[344534555,1733537457962,-500.0,0.00010954,2]
[344534556,1733537457972,-500.0,0.00010954,2]
[344534557,1733537457985,-500.0,0.00010954,2]
[344534558,1733537457995,-500.0,0.00010954,2]
[344534559,1733537458005,-500.0,0.00010954,2]
[344534560,1733537458015,-773.09,0.00010954,2]
[344534561,1733537458028,-611.78,0.00010954,2]
[344534562,1733537458038,-708.34,0.00010954,2]
[344534563,1733537458047,-500.0,0.00010954,2]
[344534564,1733537458056,-1172.09,0.00010954,2]
[344534565,1733537458068,-1122.04,0.00010954,2]
[344534566,1733537458088,-536.64,0.00010954,2]
[344534567,1733537458100,-500.0,0.00010954,2]
[344534568,1733537458110,-500.0,0.00010954,2]
[344534569,1733537458119,-1195.36,0.00010954,2]
[344534570,1733537458131,-1204.41,0.00010954,2]
[344534571,1733537458142,-500.0,0.00010954,2]
[344534572,1733537458152,-500.0,0.00010954,2]
[344534573,1733537458163,-500.0,0.00010954,2]
[344534574,1733537458174,-500.0,0.00010954,2]
[344534575,1733537458183,-1277.16,0.00010954,2]
[344534576,1733537458193,-723.36,0.00010954,2]
[344534577,1733537458203,-1141.67,0.00010954,2]
[344534578,1733537458214,-500.0,0.00010954,2]
[344534579,1733537458225,-626.89,0.00010954,2]
[344534580,1733537458235,-500.0,0.00010954,2]
[344534581,1733537458246,-561.29,0.00010954,2]
[344534582,1733537458256,-500.0,0.00010954,2]
[344534583,1733537458266,-500.0,0.00010954,2]
[344534584,1733537458276,-952.18,0.00010954,2]
[344534585,1733537458285,-940.5,0.00010954,2]
[344534586,1733537458295,-500.0,0.00010954,2]
[344534587,1733537458305,-500.0,0.00010954,2]
[344534588,1733537458315,-500.0,0.00010954,2]
[344534589,1733537458325,-867.31,0.00010954,2]
[344534590,1733537458340,-841.91,0.00010954,2]
[344534591,1733537458353,-500.0,0.00010954,2]
[344534592,1733537458362,-500.0,0.00010954,2]
[344534593,1733537458372,-598.02,0.00010954,2]
[344534594,1733537458382,-500.0,0.00010954,2]
[344534595,1733537458394,-500.0,0.00010954,2]
[344534596,1733537458404,-500.0,0.00010954,2]
[344534597,1733537458414,-500.0,0.00010954,2]
[344534598,1733537458424,-500.0,0.00010954,2]
[344534599,1733537458433,-519.16,0.00010954,2]
[344534600,1733537458443,-1077.49,0.00010954,2]
[344534601,1733537458452,-528.30581701,0.00010954,2]
[344534602,1733537458462,-500.0,0.00010954,2]
[344534603,1733537458472,-503.35,0.00010954,2]
[344534604,1733537458482,-500.0,0.00010954,2]
[344534605,1733537458491,-500.0,0.00010954,2]
[344534606,1733537458501,-963.09,0.00010954,2]
[344534607,1733537458512,-1121.84,0.00010954,2]
[344534608,1733537458521,-625.34,0.00010954,2]
[344534609,1733537458531,-500.0,0.00010954,2]
[344534610,1733537458541,-500.0,0.00010954,2]
[344534611,1733537458551,-705.73,0.00010954,2]
[344534612,1733537458560,-500.0,0.00010954,2]
[344534613,1733537458570,-500.0,0.00010954,2]
[344534614,1733537458583,-576.6,0.00010954,2]
[344534615,1733537458592,-379.61806043,0.00010954,2]
[344534616,1733537458602,-500.0,0.00010954,2]
[344534617,1733537458611,-500.0,0.00010954,2]
[344534618,1733537458620,-500.0,0.00010954,2]
[344534619,1733537458631,-500.0,0.00010954,2]
[344534620,1733537458640,-500.0,0.00010954,2]
[344534621,1733537458650,-500.0,0.00010954,2]
[344534622,1733537458659,-500.0,0.00010954,2]
[344534623,1733537458669,-515.19,0.00010954,2]
[344534624,1733537458679,-660.5,0.00010954,2]
[344534625,1733537458689,-500.0,0.00010954,2]
[344534626,1733537458699,-500.0,0.00010954,2]
[344534627,1733537458708,-500.0,0.00010954,2]
[344534628,1733537458718,-892.96,0.00010954,2]
[344534629,1733537458729,-1345.19,0.00010954,2]
[344534630,1733537458740,-567.63,0.00010954,2]
[344534631,1733537458750,-500.0,0.00010954,2]
[344534632,1733537458759,-712.16,0.00010954,2]
[344534633,1733537458769,-500.0,0.00010954,2]
[344534634,1733537458778,-500.0,0.00010954,2]
[344534635,1733537458788,-500.0,0.00010954,2]
[344534636,1733537458798,-870.39,0.00010954,2]
[344534637,1733537458807,-500.0,0.00010954,2]
[344534638,1733537458817,-500.0,0.00010954,2]
[344534639,1733537458830,-820.34,0.00010954,2]
[344534640,1733537458839,-588.07,0.00010954,2]
[344534641,1733537458848,-500.0,0.00010954,2]
[344534642,1733537458858,-500.0,0.00010954,2]
[344534643,1733537458867,-820.76,0.00010954,2]
[344534644,1733537458877,-854.13,0.00010954,2]
[344534645,1733537458887,-550.88,0.00010954,2]
[344534646,1733537458897,-500.0,0.00010954,2]
[344534647,1733537458906,-500.0,0.00010954,2]
[344534648,1733537458916,-500.0,0.00010954,2]
[344534649,1733537458925,-500.0,0.00010954,2]
[344534650,1733537458935,-431.62661662,0.00010954,2]
[344534651,1733537458945,-778.07,0.00010954,2]
[344534652,1733537458954,-1181.78,0.00010954,2]
[344534653,1733537458964,-500.0,0.00010954,2]
[344534654,1733537458973,-500.0,0.00010954,2]
[344534655,1733537458983,-582.48,0.00010954,2]
[344534656,1733537458992,-2295.52,0.00010954,2]
[344534657,1733537459002,-799.05,0.00010954,2]
[344534658,1733537459012,-829.82,0.00010954,2]
[344534659,1733537459022,-794.15,0.00010954,2]
[344534660,1733537459031,-500.0,0.00010954,2]
[344534661,1733537459041,-500.0,0.00010954,2]
[344534662,1733537459051,-724.21,0.00010954,2]
[344534663,1733537459061,-500.0,0.00010954,2]
[344534664,1733537459071,-500.0,0.00010954,2]
[344534665,1733537459084,-664.86,0.00010954,2]
[344534666,1733537459093,-577.80466122,0.00010954,2]
[344534667,1733537459102,-989.21,0.00010954,2]
[344534668,1733537459111,-849.12,0.00010954,2]
[344534669,1733537459121,-500.0,0.00010954,2]
[344534670,1733537459130,-500.0,0.00010954,2]
[344534671,1733537459139,-500.0,0.00010954,2]
[344534672,1733537459149,-500.0,0.00010954,2]
[344534673,1733537459158,-500.0,0.00010954,2]
[344534674,1733537459167,-500.0,0.00010954,2]
[344534675,1733537459176,-509.57,0.00010954,2]
[344534676,1733537459185,-713.01,0.00010954,2]
[344534677,1733537459195,-500.0,0.00010954,2]
[344534678,1733537459205,-500.0,0.00010954,2]
[344534679,1733537459215,-560.76,0.00010954,2]
[344534680,1733537459225,-679.55,0.00010954,2]
[344534681,1733537459234,-500.0,0.00010954,2]
[344534682,1733537459245,-500.0,0.00010954,2]
[344534683,1733537459255,-500.0,0.00010954,2]
[344534684,1733537459264,-500.0,0.00010954,2]
[344534685,1733537459275,-1346.56,0.00010954,2]
[344534686,1733537459284,-989.19,0.00010954,2]
[344534687,1733537459294,-1211.19,0.00010954,2]
[344534688,1733537459303,-500.0,0.00010954,2]
[344534689,1733537459312,-1833.64,0.00010954,2]
[344534690,1733537459322,-500.0,0.00010954,2]
[344534691,1733537459336,-500.0,0.00010954,2]
[344534692,1733537459348,-589.26,0.00010954,2]
[344534693,1733537459359,-500.0,0.00010954,2]
[344534694,1733537459369,-500.0,0.00010954,2]
[344534695,1733537459378,-921.57,0.00010954,2]
[344534696,1733537459389,-500.80080012,0.00010954,2]
[344534697,1733537459399,-1281.93,0.00010954,2]
[344534698,1733537459409,-500.0,0.00010954,2]
[344534699,1733537459419,-736.24,0.00010954,2]
[344534700,1733537459429,-500.0,0.00010954,2]
[344534701,1733537459438,-500.0,0.00010954,2]
[344534702,1733537459448,-500.0,0.00010954,2]
[344534703,1733537459457,-529.97,0.00010954,2]
[344534704,1733537459468,-500.0,0.00010954,2]
[344534705,1733537459477,-780.19,0.00010954,2]
[344534706,1733537459487,-500.0,0.00010954,2]
[344534707,1733537459496,-655.95,0.00010954,2]
[344534708,1733537459505,-911.08,0.00010954,2]
[344534709,1733537459515,-500.0,0.00010954,2]
[344534710,1733537459524,-530.43,0.00010954,2]
[344534711,1733537459534,-873.22,0.00010954,2]
[344534712,1733537459544,-1140.22,0.00010954,2]
[344534713,1733537459553,-500.0,0.00010954,2]
[344534714,1733537459563,-627.08,0.00010954,2]
[344534715,1733537459572,-500.0,0.00010954,2]
[344534716,1733537459584,-643.92,0.00010954,2]
[344534717,1733537459593,-2433.75,0.00010954,2]
[344534718,1733537459603,-500.0,0.00010954,2]
[344534719,1733537459613,-153.62590379,0.00010954,2]
[344534720,1733537459622,-500.0,0.00010954,2]
[344534721,1733537459632,-1430.18,0.00010954,2]
[344534722,1733537459641,-500.0,0.00010954,2]
[344534723,1733537459651,-782.99,0.00010954,2]
[344534724,1733537459660,-2284.01,0.00010954,2]
[344534725,1733537459670,-780.92,0.00010954,2]
[344534726,1733537459680,-500.0,0.00010954,2]
[344534727,1733537459690,-500.0,0.00010954,2]
[344534728,1733537459699,-693.87,0.00010954,2]
[344534729,1733537459709,-509.76,0.00010954,2]
[344534730,1733537459719,-831.52,0.00010954,2]
[344534731,1733537459728,-500.0,0.00010954,2]
[344534732,1733537459737,-714.59,0.00010954,2]
[344534733,1733537459747,-1380.02,0.00010954,2]
[344534734,1733537459757,-823.48,0.00010954,2]
[344534735,1733537459766,-500.0,0.00010954,2]
[344534736,1733537459776,-893.2,0.00010954,2]
[344534737,1733537459785,-1734.35,0.00010954,2]
[344534738,1733537459794,-814.35,0.00010954,2]
[344534739,1733537459803,-500.0,0.00010954,2]
[344534740,1733537459813,-3768.03,0.00010954,2]
[344534741,1733537459823,-582.08,0.00010954,2]
[344534742,1733537459835,-830.35,0.00010954,2]
[344534743,1733537459844,-975.77,0.00010954,2]
[344534744,1733537459854,-500.0,0.00010954,2]
[344534745,1733537459864,-500.0,0.00010954,2]
[344534746,1733537459873,-7359.0,0.00010954,2]
[344534747,1733537459882,-3459.63,0.00010954,2]
[344534748,1733537459891,-500.0,0.00010954,2]
[344534749,1733537459902,-769.9,0.00010954,2]
[344534750,1733537459911,-500.0,0.00010954,2]
[344534751,1733537459921,-500.0,0.00010954,2]
[344534752,1733537459930,-1346.14,0.00010954,2]
[344534753,1733537459940,-964.1,0.00010954,2]
[344534754,1733537459949,-605.16589938,0.00010954,2]
[344534755,1733537459958,-1200.0,0.00010954,2]
[344534756,1733537459967,-1060.98,0.00010954,2]
[344534757,1733537459976,-2194.59,0.00010954,2]
[344534758,1733537459986,-1828.43,0.00010954,2]
[344534759,1733537459996,-500.0,0.00010954,2]
[344534760,1733537460006,-500.0,0.00010954,2]
[344534761,1733537460015,-500.0,0.00010954,2]
[344534762,1733537460025,-535.97,0.00010954,2]
[344534763,1733537460034,-500.0,0.00010954,2]
[344534764,1733537460044,-10224.43,0.00010954,2]
[344534765,1733537460053,-564.88,0.00010954,2]
[344534766,1733537460063,-848.28,0.00010954,2]
[344534767,1733537460073,-2147.92,0.00010954,2]
[344534768,1733537460085,-2112.65,0.00010954,2]
[344534769,1733537460095,-292.95534374,0.00010954,2]
[344534770,1733537460104,-500.0,0.00010954,2]
[344534771,1733537460114,-967.65,0.00010954,2]
[344534772,1733537460124,-500.0,0.00010954,2]
[344534773,1733537460134,-2046.48,0.00010954,2]
[344534774,1733537460230,-674.48,0.00010954,2]
[344534775,1733537460240,-1371.16,0.00010954,2]
[344534776,1733537460250,-316.83345651,0.00010954,2]
[344534777,1733537460260,-500.0,0.00010954,2]
[344534778,1733537460270,-1082.33,0.00010954,2]
[344534779,1733537460280,-500.0,0.00010954,2]
[344534780,1733537460289,-9124.76,0.00010954,2]
[344534781,1733537460298,-837.66,0.00010954,2]
[344534782,1733537460308,-500.0,0.00010954,2]
[344534783,1733537460319,-567.79,0.00010954,2]
[344534784,1733537460333,-679.51,0.00010954,2]
[344534785,1733537460345,-500.0,0.00010954,2]
[344534786,1733537460355,-1047.21,0.00010954,2]
[344534787,1733537460365,-500.0,0.00010954,2]
[344534788,1733537460375,-621.96,0.00010954,2]
[344534789,1733537460386,-500.0,0.00010954,2]
[344534790,1733537460396,-500.0,0.00010954,2]
[344534791,1733537460406,-500.0,0.00010954,2]
[344534792,1733537460416,-1080.14,0.00010954,2]
[344534793,1733537460426,-500.0,0.00010954,2]
[344534794,1733537460435,-628.02,0.00010954,2]
[344534795,1733537460444,-500.0,0.00010954,2]
[344534796,1733537460453,-500.0,0.00010954,2]
[344534797,1733537460463,-1351.25,0.00010954,2]
[344534798,1733537460472,-1754.98,0.00010954,2]
[344534799,1733537460482,-5506.2,0.00010954,2]
[344534800,1733537460491,-3200.75,0.00010954,2]
[344534801,1733537460501,-536.93,0.00010954,2]
[344534802,1733537460511,-500.0,0.00010954,2]
[344534803,1733537460520,-315.38954178,0.00010954,2]
[344534804,1733537460530,-500.0,0.00010954,2]
[344534805,1733537460540,-1297.69,0.00010954,2]
[344534806,1733537460549,-500.0,0.00010954,2]
[344534807,1733537460558,-1217.46,0.00010954,2]
[344534808,1733537460567,-500.0,0.00010954,2]
[344534809,1733537460577,-500.0,0.00010954,2]
[344534810,1733537460590,-1520.75,0.00010954,2]
[344534811,1733537460600,-500.0,0.00010954,2]
[344534812,1733537460609,-5161.49,0.00010954,2]
[344534813,1733537460618,-426.46444078,0.00010954,2]
[344534814,1733537460627,-525.72,0.00010954,2]
[344534815,1733537460637,-500.0,0.00010954,2]
[344534816,1733537460647,-4752.83,0.00010954,2]
[344534817,1733537460656,-500.0,0.00010954,2]
[344534818,1733537460666,-579.7,0.00010954,2]
[344534819,1733537460675,-500.0,0.00010954,2]
[344534820,1733537460685,-1013.93,0.00010954,2]
[344534821,1733537460694,-500.0,0.00010954,2]
[344534822,1733537460703,-500.0,0.00010954,2]
[344534823,1733537460712,-1478.17,0.00010954,2]
[344534824,1733537460721,-980.16,0.00010954,2]
[344534825,1733537460731,-2253.52,0.00010954,2]
[344534826,1733537460740,-529.93,0.00010954,2]
[344534827,1733537460748,-589.51,0.00010954,2]
[344534828,1733537460757,-846.32,0.00010954,2]
[344534829,1733537460766,-634.76,0.00010954,2]
[344534830,1733537460776,-1592.53,0.00010954,2]
[344534831,1733537460785,-500.0,0.00010954,2]
[344534832,1733537460794,-500.0,0.00010954,2]
[344534833,1733537460803,-806.38,0.00010954,2]
[344534834,1733537460812,-500.0,0.00010954,2]
[344534835,1733537460822,-987.46,0.00010954,2]
[344534836,1733537460834,-500.0,0.00010954,2]
[344534837,1733537460843,-678.97,0.00010954,2]
[344534838,1733537460852,-527.38,0.00010954,2]
[344534839,1733537460861,-500.0,0.00010954,2]
[344534840,1733537460870,-845.26,0.00010954,2]
[344534841,1733537460879,-618.23,0.00010954,2]
[344534842,1733537460887,-718.78,0.00010954,2]
[344534843,1733537460895,-500.0,0.00010954,2]
[344534844,1733537460904,-500.0,0.00010954,2]
[344534845,1733537460913,-500.0,0.00010954,2]
[344534846,1733537460922,-432.36897127,0.00010954,2]
[344534847,1733537460932,-500.0,0.00010954,2]
[344534848,1733537460941,-700.38,0.00010954,2]
[344534849,1733537460950,-2142.56,0.00010954,2]
[344534850,1733537460960,-500.0,0.00010954,2]
[344534851,1733537460970,-1006.68,0.00010954,2]
[344534852,1733537460980,-500.0,0.00010954,2]
[344534853,1733537460989,-500.0,0.00010954,2]
[344534854,1733537460998,-500.0,0.00010954,2]
[344534855,1733537461008,-601.72,0.00010954,2]
[344534856,1733537461017,-500.0,0.00010954,2]
[344534857,1733537461026,-810.93,0.00010954,2]
[344534858,1733537461035,-500.0,0.00010954,2]
[344534859,1733537461044,-500.0,0.00010954,2]
[344534860,1733537461053,-501.41644168,0.00010954,2]
[344534861,1733537461062,-500.0,0.00010954,2]
[344534862,1733537461071,-500.0,0.00010954,2]
[344534863,1733537461083,-2711.3,0.00010954,2]
[344534864,1733537461092,-1456.41,0.00010954,2]
[344534865,1733537461101,-552.66,0.00010954,2]
[344534866,1733537461110,-1264.39,0.00010954,2]
[344534867,1733537461119,-742.7,0.00010954,2]
[344534868,1733537461132,-500.0,0.00010954,2]
[344534869,1733537461141,-500.0,0.00010954,2]
[344534870,1733537461150,-500.0,0.00010954,2]
[344534871,1733537461159,-500.0,0.00010954,2]
[344534872,1733537461168,-500.0,0.00010954,2]
[344534873,1733537461177,-500.0,0.00010954,2]
[344534874,1733537461186,-1614.85,0.00010954,2]
[344534875,1733537461195,-527.0,0.00010955,2]
[344534876,1733537461205,-1000.0,0.00010955,2]
[344534877,1733537461214,-500.0,0.00010955,2]
[344534878,1733537461223,-500.0,0.00010955,2]
[344534879,1733537461233,-935.29,0.00010955,2]
[344534880,1733537461242,-500.0,0.00010955,2]
[344534881,1733537461255,-507.32,0.00010955,2]
[344534882,1733537461265,-537.37,0.00010955,2]
[344534883,1733537461276,-500.0,0.00010955,2]
[344534884,1733537461285,-500.0,0.00010955,2]
[344534885,1733537461295,-500.0,0.00010955,2]
[344534886,1733537461304,-500.0,0.00010955,2]
[344534887,1733537461313,-500.0,0.00010955,2]
[344534888,1733537461322,-500.0,0.00010955,2]
[344534889,1733537461333,-500.0,0.00010955,2]
[344534890,1733537461344,-1039.25,0.00010955,2]
[344534891,1733537461355,-934.3,0.00010955,2]
[344534892,1733537461364,-500.0,0.00010955,2]
[344534893,1733537461373,-706.31,0.00010955,2]
[344534894,1733537461382,-1575.02,0.00010955,2]
[344534895,1733537461393,-974.48,0.00010955,2]
[344534896,1733537461403,-500.0,0.00010955,2]
[344534897,1733537461412,-500.0,0.00010955,2]
[344534898,1733537461421,-594.53,0.00010955,2]
[344534899,1733537461431,-500.0,0.00010955,2]
[344534900,1733537461440,-500.0,0.00010955,2]
[344534901,1733537461448,-500.0,0.00010955,2]
[344534902,1733537461457,-500.0,0.00010955,2]
[344534903,1733537461466,-500.0,0.00010955,2]
[344534904,1733537461475,-500.0,0.00010955,2]
[344534905,1733537461485,-500.0,0.00010955,2]
[344534906,1733537461493,-466.01781372,0.00010955,2]
[344534907,1733537461503,-500.0,0.00010955,2]
[344534908,1733537461510,-500.0,0.00010955,2]
[344534909,1733537461519,-500.0,0.00010955,2]
[344534910,1733537461529,-500.0,0.00010955,2]
[344534911,1733537461538,-500.0,0.00010955,2]
[344534912,1733537461547,-232.02083911,0.00010955,2]
[344534913,1733537461557,-648.49,0.00010955,2]
[344534914,1733537461566,-532.51768856,0.00010955,2]
[344534915,1733537461575,-500.0,0.00010955,2]
[344534916,1733537461589,-500.0,0.00010955,2]
[344534917,1733537461599,-500.0,0.00010955,2]
[344534918,1733537461607,-500.0,0.00010955,2]
[344534919,1733537461616,-500.0,0.00010955,2]
[344534920,1733537461629,-500.0,0.00010955,2]
[344534921,1733537461638,-672.69,0.00010955,2]
[344534922,1733537461648,-500.0,0.00010955,2]
[344534923,1733537461657,-523.55,0.00010955,2]
[344534924,1733537461666,-500.0,0.00010955,2]
[344534925,1733537461675,-500.0,0.00010955,2]
[344534926,1733537461684,-734.69,0.00010955,2]
[344534927,1733537461693,-474.29940169,0.00010955,2]
[344534928,1733537461702,-500.0,0.00010955,2]
[344534929,1733537461711,-500.0,0.00010955,2]
[344534930,1733537461721,-500.0,0.00010955,2]
[344534931,1733537461731,-500.0,0.00010955,2]
[344534932,1733537461739,-500.0,0.00010955,2]